[Event "Early-Titled-Tuesday-Blitz-April-23-2024"]
[Site "Chess.com"]
[Date "2024.04.23"]
[Round "7"]
[White "Durarbayli"]
[Black "Maxfan2008"]
[Result "1/2-1/2"]
[WhiteElo "2930"]
[BlackElo "2631"]
[TimeControl "180+1"]
[EndTime "9:20:59 PDT"]
[Termination "Game drawn by stalemate"]

1. d4 {[%clk 0:02:59.4]} 1... Nf6 {[%clk 0:02:55.6]} 2. c4 {[%clk 0:02:58.4]}
2... e6 {[%clk 0:02:55.9]} 3. Nc3 {[%clk 0:02:58.6]} 3... Bb4 {[%clk 0:02:55.9]}
4. f3 {[%clk 0:02:59.1]} 4... c5 {[%clk 0:02:54.3]} 5. d5 {[%clk 0:02:59.5]}
5... d6 {[%clk 0:02:49.9]} 6. e4 {[%clk 0:02:59.9]} 6... b5 {[%clk 0:02:50.2]}
7. Ne2 {[%clk 0:03:00.1]} 7... bxc4 {[%clk 0:02:50.4]} 8. Nf4 {[%clk 0:03:00.7]}
8... e5 {[%clk 0:02:50.9]} 9. Ne2 {[%clk 0:03:00.3]} 9... Nbd7 {[%clk
0:02:51.3]} 10. g4 {[%clk 0:02:58]} 10... h5 {[%clk 0:02:32.3]} 11. g5 {[%clk
0:02:57.2]} 11... Ng8 {[%clk 0:02:32.7]} 12. h4 {[%clk 0:02:52.7]} 12... Ne7
{[%clk 0:02:26.5]} 13. Ng3 {[%clk 0:02:50.4]} 13... Nb6 {[%clk 0:02:25.3]} 14.
Kf2 {[%clk 0:02:41.4]} 14... Bd7 {[%clk 0:02:23.1]} 15. Be2 {[%clk 0:02:14.9]}
15... Ng6 {[%clk 0:02:13]} 16. Nf5 {[%clk 0:02:12]} 16... Bxf5 {[%clk
0:02:08.6]} 17. exf5 {[%clk 0:02:12.9]} 17... Bxc3 {[%clk 0:02:05.4]} 18. bxc3
{[%clk 0:01:49.8]} 18... Ne7 {[%clk 0:02:04.9]} 19. Qc2 {[%clk 0:01:47.9]} 19...
Qd7 {[%clk 0:01:52.4]} 20. f6 {[%clk 0:01:47.6]} 20... gxf6 {[%clk 0:01:49.9]}
21. gxf6 {[%clk 0:01:48.5]} 21... Nexd5 {[%clk 0:01:49.5]} 22. Bg5 {[%clk
0:01:41.9]} 22... Qa4 {[%clk 0:01:41]} 23. Qd2 {[%clk 0:01:24.5]} 23... O-O-O
{[%clk 0:01:31.4]} 24. Rhb1 {[%clk 0:01:16.5]} 24... Nc7 {[%clk 0:01:26.7]} 25.
Bd1 {[%clk 0:01:14.6]} 25... Qc6 {[%clk 0:01:22.4]} 26. a4 {[%clk 0:01:13.4]}
26... d5 {[%clk 0:01:19.1]} 27. a5 {[%clk 0:01:06.7]} 27... Nd7 {[%clk
0:01:18.7]} 28. Ba4 {[%clk 0:00:42.9]} 28... Qe6 {[%clk 0:01:04.8]} 29. Qb2
{[%clk 0:00:31.1]} 29... Qa6 {[%clk 0:01:04.6]} 30. f4 {[%clk 0:00:27.1]} 30...
e4 {[%clk 0:01:00.3]} 31. f5 {[%clk 0:00:27]} 31... Rhe8 {[%clk 0:00:57.4]} 32.
Be3 {[%clk 0:00:19.7]} 32... Re5 {[%clk 0:00:53.4]} 33. Bxc5 {[%clk 0:00:09.2]}
33... Rxf5+ {[%clk 0:00:51]} 34. Ke2 {[%clk 0:00:09.8]} 34... Rxf6 {[%clk
0:00:23.5]} 35. Bd4 {[%clk 0:00:09.4]} 35... Rg6 {[%clk 0:00:11.4]} 36. Qb4
{[%clk 0:00:09.6]} 36... Rdg8 {[%clk 0:00:08]} 37. Kf1 {[%clk 0:00:02.8]} 37...
Qe6 {[%clk 0:00:03.7]} 38. Qb7+ {[%clk 0:00:02.4]} 38... Kd8 {[%clk 0:00:03.7]}
39. Qb8+ {[%clk 0:00:01.2]} 39... Nxb8 {[%clk 0:00:03.3]} 40. Rxb8+ {[%clk
0:00:02.1]} 40... Ke7 {[%clk 0:00:04]} 41. Bc5+ {[%clk 0:00:03]} 41... Kf6
{[%clk 0:00:04.2]} 42. Bd4+ {[%clk 0:00:03.9]} 42... Kf5 {[%clk 0:00:04.6]} 43.
Rb7 {[%clk 0:00:02.8]} 43... Kg4 {[%clk 0:00:04.1]} 44. Bd1+ {[%clk 0:00:02.5]}
44... Kh3 {[%clk 0:00:04.5]} 45. Rxc7 {[%clk 0:00:02.6]} 45... Qf5+ {[%clk
0:00:04]} 46. Ke1 {[%clk 0:00:03.2]} 46... e3 {[%clk 0:00:01.7]} 47. Bxe3 {[%clk
0:00:03.3]} 47... Rg1+ {[%clk 0:00:02.1]} 48. Kd2 {[%clk 0:00:03.8]} 48... Qd3+
{[%clk 0:00:02.1]} 49. Kc1 {[%clk 0:00:03.7]} 49... Rxd1+ {[%clk 0:00:02.1]} 50.
Kb2 {[%clk 0:00:04.6]} 50... Rg2+ {[%clk 0:00:02.2]} 51. Bf2 {[%clk 0:00:04.6]}
51... Rxf2+ {[%clk 0:00:02.1]} 52. Ka3 {[%clk 0:00:05.5]} 52... Qxc3+ {[%clk
0:00:02.5]} 53. Ka4 {[%clk 0:00:05.9]} 53... Rxa1+ {[%clk 0:00:03.3]} 54. Kb5
{[%clk 0:00:06.8]} 54... Qxa5+ {[%clk 0:00:02.9]} 55. Kc6 {[%clk 0:00:07.7]}
55... Rf6+ {[%clk 0:00:03.3]} 56. Kb7 {[%clk 0:00:07]} 56... Qxc7+ {[%clk
0:00:04.1]} 57. Ka8 {[%clk 0:00:07.9]} 57... c3 {[%clk 0:00:05]} 1/2-1/2

[Event "Early-Titled-Tuesday-Blitz-April-23-2024"]
[Site "Chess.com"]
[Date "2024.04.23"]
[Round "7"]
[White "Incognito_Knight"]
[Black "theoneandonlydaaevik"]
[Result "1/2-1/2"]
[WhiteElo "2740"]
[BlackElo "2595"]
[TimeControl "180+1"]
[EndTime "9:21:00 PDT"]
[Termination "Game drawn by repetition"]

1. e4 {[%clk 0:02:57.1]} 1... c5 {[%clk 0:02:59.5]} 2. d4 {[%clk 0:02:57]} 2...
cxd4 {[%clk 0:02:59.6]} 3. Qxd4 {[%clk 0:02:57.9]} 3... Nc6 {[%clk 0:02:55.7]}
4. Qd3 {[%clk 0:02:58.1]} 4... g6 {[%clk 0:02:38]} 5. Nc3 {[%clk 0:02:57.7]}
5... Bg7 {[%clk 0:02:38.2]} 6. Nf3 {[%clk 0:02:57.9]} 6... d6 {[%clk 0:02:38.8]}
7. Be2 {[%clk 0:02:58.4]} 7... Nf6 {[%clk 0:02:38.8]} 8. O-O {[%clk 0:02:58.8]}
8... O-O {[%clk 0:02:39.5]} 9. Nd5 {[%clk 0:02:59.2]} 9... Bg4 {[%clk 0:02:38]}
10. c3 {[%clk 0:02:57]} 10... Bxf3 {[%clk 0:02:37.7]} 11. Qxf3 {[%clk
0:02:55.6]} 11... Rc8 {[%clk 0:02:35.5]} 12. Bg5 {[%clk 0:02:53.6]} 12... Nxd5
{[%clk 0:02:33.6]} 13. exd5 {[%clk 0:02:54.5]} 13... Ne5 {[%clk 0:02:33.9]} 14.
Qe4 {[%clk 0:02:52.9]} 14... h6 {[%clk 0:02:32.7]} 15. Be3 {[%clk 0:02:42.3]}
15... f5 {[%clk 0:02:29.1]} 16. Qb4 {[%clk 0:02:31]} 16... a5 {[%clk 0:01:59.1]}
17. Qa4 {[%clk 0:02:23.5]} 17... Qd7 {[%clk 0:01:47.8]} 18. Bb5 {[%clk
0:01:46.1]} 18... Qc7 {[%clk 0:01:47.4]} 19. h3 {[%clk 0:01:43.9]} 19... Nc4
{[%clk 0:01:32.4]} 20. Bc1 {[%clk 0:01:22.9]} 20... f4 {[%clk 0:01:19.9]} 21.
Re1 {[%clk 0:01:09.6]} 21... Nb6 {[%clk 0:01:01.9]} 22. Qe4 {[%clk 0:01:00.8]}
22... Kh7 {[%clk 0:00:45.5]} 23. Bxf4 {[%clk 0:00:46.1]} 23... Nxd5 {[%clk
0:00:43.9]} 24. Bxh6 {[%clk 0:00:29.9]} 24... Nxc3 {[%clk 0:00:41.9]} 25. bxc3
{[%clk 0:00:27]} 25... Bxh6 {[%clk 0:00:38.4]} 26. Qxe7+ {[%clk 0:00:16.5]}
26... Qxe7 {[%clk 0:00:31.6]} 27. Rxe7+ {[%clk 0:00:17.4]} 27... Bg7 {[%clk
0:00:32.5]} 28. c4 {[%clk 0:00:13.7]} 28... b6 {[%clk 0:00:28.1]} 29. Rd1 {[%clk
0:00:13.3]} 29... Rf6 {[%clk 0:00:25.3]} 30. Rd7 {[%clk 0:00:10.4]} 30... Rcf8
{[%clk 0:00:16.1]} 31. f3 {[%clk 0:00:10.6]} 31... Kh6 {[%clk 0:00:10.6]} 32.
R7xd6 {[%clk 0:00:09.5]} 32... Rxd6 {[%clk 0:00:11]} 33. Rxd6 {[%clk 0:00:10.4]}
33... Be5 {[%clk 0:00:11.9]} 34. Re6 {[%clk 0:00:09]} 34... Bd4+ {[%clk
0:00:12.1]} 35. Kf1 {[%clk 0:00:09.5]} 35... Rf6 {[%clk 0:00:11.4]} 36. Re4
{[%clk 0:00:07.3]} 36... Bc5 {[%clk 0:00:10.8]} 37. Ke2 {[%clk 0:00:06.8]} 37...
Rd6 {[%clk 0:00:11]} 38. a4 {[%clk 0:00:06.9]} 38... Bb4 {[%clk 0:00:11.4]} 39.
g4 {[%clk 0:00:05.5]} 39... Kg5 {[%clk 0:00:10.8]} 40. f4+ {[%clk 0:00:05.2]}
40... Kh4 {[%clk 0:00:10.5]} 41. f5 {[%clk 0:00:05.3]} 41... gxf5 {[%clk
0:00:09.5]} 42. gxf5+ {[%clk 0:00:06.2]} 42... Kg5 {[%clk 0:00:09.6]} 43. Rg4+
{[%clk 0:00:02.4]} 43... Kxf5 {[%clk 0:00:09.7]} 44. Rg8 {[%clk 0:00:03.3]}
44... Kf4 {[%clk 0:00:03.9]} 45. h4 {[%clk 0:00:02.9]} 45... Rd2+ {[%clk
0:00:03.7]} 46. Kf1 {[%clk 0:00:03.6]} 46... Rh2 {[%clk 0:00:04.2]} 47. h5
{[%clk 0:00:01.5]} 47... Rxh5 {[%clk 0:00:02.5]} 48. Rg2 {[%clk 0:00:02.2]}
48... Bc5 {[%clk 0:00:02.6]} 49. Ke2 {[%clk 0:00:01.7]} 49... Re5+ {[%clk
0:00:02.8]} 50. Kd3 {[%clk 0:00:01.9]} 50... Re3+ {[%clk 0:00:03.3]} 51. Kc2
{[%clk 0:00:02.5]} 51... Ra3 {[%clk 0:00:03.9]} 52. Rd2 {[%clk 0:00:02.8]} 52...
Ra2+ {[%clk 0:00:03.9]} 53. Kd3 {[%clk 0:00:03.4]} 53... Rxd2+ {[%clk
0:00:04.8]} 54. Kxd2 {[%clk 0:00:04.3]} 54... Ke5 {[%clk 0:00:05.7]} 55. Kc2
{[%clk 0:00:05.2]} 55... Kd4 {[%clk 0:00:06.6]} 56. Kb3 {[%clk 0:00:06.1]} 56...
Kd3 {[%clk 0:00:06.9]} 57. Ba6 {[%clk 0:00:06.5]} 57... Kd4 {[%clk 0:00:07.8]}
58. Bb5 {[%clk 0:00:07.4]} 58... Kd3 {[%clk 0:00:08.2]} 59. Ba6 {[%clk
0:00:08.3]} 59... Kd4 {[%clk 0:00:09.1]} 60. Bb5 {[%clk 0:00:09.2]} 1/2-1/2

[Event "Early-Titled-Tuesday-Blitz-April-23-2024"]
[Site "Chess.com"]
[Date "2024.04.23"]
[Round "7"]
[White "inagreV"]
[Black "lamomiajunior"]
[Result "0-1"]
[WhiteElo "2405"]
[BlackElo "2740"]
[TimeControl "180+1"]
[EndTime "9:21:01 PDT"]
[Termination "lamomiajunior won by resignation"]

1. e4 {[%clk 0:03:00.9]} 1... c5 {[%clk 0:03:00]} 2. Nf3 {[%clk 0:03:01]} 2...
d6 {[%clk 0:03:00.5]} 3. d4 {[%clk 0:03:01.2]} 3... cxd4 {[%clk 0:03:01.4]} 4.
Nxd4 {[%clk 0:03:02]} 4... Nf6 {[%clk 0:03:02.1]} 5. Nc3 {[%clk 0:03:02.5]} 5...
a6 {[%clk 0:03:02.8]} 6. a4 {[%clk 0:03:02.8]} 6... Nc6 {[%clk 0:03:01.1]} 7.
Nxc6 {[%clk 0:03:02.4]} 7... bxc6 {[%clk 0:03:01.5]} 8. a5 {[%clk 0:03:02.7]}
8... g6 {[%clk 0:03:00.6]} 9. Bc4 {[%clk 0:03:01]} 9... Bg7 {[%clk 0:03:00.6]}
10. e5 {[%clk 0:03:01]} 10... dxe5 {[%clk 0:02:35.4]} 11. Qxd8+ {[%clk 0:02:57]}
11... Kxd8 {[%clk 0:02:36.3]} 12. Be3 {[%clk 0:02:49.9]} 12... Ke8 {[%clk
0:02:34.8]} 13. O-O-O {[%clk 0:02:47.2]} 13... Be6 {[%clk 0:02:21.5]} 14. Bxe6
{[%clk 0:02:46.1]} 14... fxe6 {[%clk 0:02:22.4]} 15. Na4 {[%clk 0:02:41.3]}
15... Nd5 {[%clk 0:02:22.7]} 16. Bc5 {[%clk 0:02:38.2]} 16... Kf7 {[%clk
0:02:16.3]} 17. Rhe1 {[%clk 0:02:36.3]} 17... Rad8 {[%clk 0:02:08.7]} 18. c4
{[%clk 0:02:29.2]} 18... Nf4 {[%clk 0:02:08.1]} 19. Kc2 {[%clk 0:02:20.3]} 19...
Nxg2 {[%clk 0:02:07.6]} 20. Re4 {[%clk 0:02:17.3]} 20... Rxd1 {[%clk 0:02:02.7]}
21. Kxd1 {[%clk 0:02:18.2]} 21... Rd8+ {[%clk 0:02:02.8]} 22. Kc2 {[%clk
0:02:17.5]} 22... Nf4 {[%clk 0:01:59.2]} 23. Be3 {[%clk 0:02:08.2]} 23... Nd3
{[%clk 0:01:53.2]} 24. Bb6 {[%clk 0:01:53.9]} 24... Rd7 {[%clk 0:01:53.5]} 25.
Re3 {[%clk 0:01:51.6]} 25... Nf4 {[%clk 0:01:51]} 26. Nc5 {[%clk 0:01:49.3]}
26... Rd4 {[%clk 0:01:49.8]} 27. b3 {[%clk 0:01:47.8]} 27... Ng2 {[%clk
0:01:33.5]} 28. Rd3 {[%clk 0:01:29.7]} 28... Ne1+ {[%clk 0:01:30.4]} 29. Kd2
{[%clk 0:01:22.4]} 29... Nxd3 {[%clk 0:01:30.4]} 30. Nxd3 {[%clk 0:01:23.3]}
30... Rd7 {[%clk 0:00:27.9]} 31. Ke2 {[%clk 0:01:22.7]} 31... Bh6 {[%clk
0:00:16.8]} 32. Nxe5+ {[%clk 0:01:20.7]} 32... Ke8 {[%clk 0:00:17.4]} 33. Nxd7
{[%clk 0:01:14.2]} 33... Kxd7 {[%clk 0:00:18.3]} 34. Kd3 {[%clk 0:01:12]} 34...
e5 {[%clk 0:00:17.5]} 35. Ke4 {[%clk 0:01:11.6]} 35... Ke6 {[%clk 0:00:18.1]}
36. b4 {[%clk 0:01:09.8]} 36... Kd6 {[%clk 0:00:07.7]} 37. Bc5+ {[%clk
0:01:08.3]} 37... Kd7 {[%clk 0:00:06.1]} 38. b5 {[%clk 0:00:31.9]} 38... cxb5
{[%clk 0:00:05]} 39. cxb5 {[%clk 0:00:32.8]} 39... axb5 {[%clk 0:00:05.8]} 40.
Bxe7 {[%clk 0:00:33.1]} 40... Bf4 {[%clk 0:00:02.7]} 41. a6 {[%clk 0:00:30.9]}
41... Kc6 {[%clk 0:00:02.9]} 42. Bc5 {[%clk 0:00:28.3]} 42... Bxh2 {[%clk
0:00:03.2]} 43. a7 {[%clk 0:00:26.4]} 43... Kb7 {[%clk 0:00:03.8]} 44. f3 {[%clk
0:00:25.8]} 44... b4 {[%clk 0:00:04.1]} 45. Bxb4 {[%clk 0:00:26]} 45... Kxa7
{[%clk 0:00:04.2]} 46. Bd6 {[%clk 0:00:25.7]} 46... Kb7 {[%clk 0:00:04.9]} 47.
Kd5 {[%clk 0:00:12.3]} 47... Kc8 {[%clk 0:00:04.4]} 48. Ke6 {[%clk 0:00:12.6]}
48... Kd8 {[%clk 0:00:04.7]} 49. Kf7 {[%clk 0:00:12.5]} 49... Kd7 {[%clk
0:00:05.2]} 50. Bb8 {[%clk 0:00:12.6]} 50... Kc8 {[%clk 0:00:03.5]} 51. Bd6
{[%clk 0:00:12.6]} 51... Kd7 {[%clk 0:00:04.1]} 52. Bb8 {[%clk 0:00:13]} 52...
Bf4 {[%clk 0:00:04.1]} 53. Kg7 {[%clk 0:00:12.6]} 53... g5 {[%clk 0:00:04.7]}
54. Kxh7 {[%clk 0:00:12.2]} 54... e4 {[%clk 0:00:05]} 55. Ba7 {[%clk 0:00:06.1]}
55... exf3 {[%clk 0:00:05.3]} 56. Kg6 {[%clk 0:00:06.9]} 56... g4 {[%clk
0:00:05.7]} 57. Kf5 {[%clk 0:00:07.5]} 57... g3 {[%clk 0:00:05.9]} 58. Kxf4
{[%clk 0:00:07.1]} 58... f2 {[%clk 0:00:06.5]} 59. Kxg3 {[%clk 0:00:05.8]} 59...
f1=Q {[%clk 0:00:06.7]} 60. Bf2 {[%clk 0:00:06.5]} 60... Qd3+ {[%clk 0:00:06.6]}
61. Kg2 {[%clk 0:00:06.5]} 61... Ke6 {[%clk 0:00:07.5]} 62. Bg3 {[%clk
0:00:06.3]} 62... Kf5 {[%clk 0:00:08.4]} 63. Bf2 {[%clk 0:00:07]} 63... Kg4
{[%clk 0:00:09.3]} 64. Be1 {[%clk 0:00:06.3]} 64... Qe2+ {[%clk 0:00:09.4]} 65.
Bf2 {[%clk 0:00:07.2]} 65... Qc2 {[%clk 0:00:09.8]} 0-1

[Event "Early-Titled-Tuesday-Blitz-April-23-2024"]
[Site "Chess.com"]
[Date "2024.04.23"]
[Round "7"]
[White "Antipov_Mikhail_Al"]
[Black "Martial2008"]
[Result "1/2-1/2"]
[WhiteElo "2877"]
[BlackElo "2689"]
[TimeControl "180+1"]
[EndTime "9:21:03 PDT"]
[Termination "Game drawn - timeout vs insufficient material"]

1. e4 {[%clk 0:03:00.9]} 1... e5 {[%clk 0:02:59.8]} 2. Nf3 {[%clk 0:03:00.6]}
2... Nc6 {[%clk 0:03:00.3]} 3. Nc3 {[%clk 0:03:00.9]} 3... Nf6 {[%clk
0:02:59.8]} 4. Bb5 {[%clk 0:03:01.4]} 4... Bd6 {[%clk 0:02:58.6]} 5. a3 {[%clk
0:02:59.4]} 5... a6 {[%clk 0:02:58.4]} 6. Bc4 {[%clk 0:02:59.2]} 6... b5 {[%clk
0:02:57.7]} 7. Ba2 {[%clk 0:02:59.1]} 7... Be7 {[%clk 0:02:55.8]} 8. d3 {[%clk
0:02:58.1]} 8... d6 {[%clk 0:02:56.1]} 9. h3 {[%clk 0:02:58.5]} 9... Be6 {[%clk
0:02:56]} 10. Nd5 {[%clk 0:02:57.8]} 10... O-O {[%clk 0:02:53.4]} 11. O-O {[%clk
0:02:53.9]} 11... Nb8 {[%clk 0:02:47.6]} 12. Nxe7+ {[%clk 0:02:34.8]} 12... Qxe7
{[%clk 0:02:47.1]} 13. Bxe6 {[%clk 0:02:32.9]} 13... Qxe6 {[%clk 0:02:48]} 14.
Re1 {[%clk 0:02:32]} 14... c5 {[%clk 0:02:47.2]} 15. b4 {[%clk 0:02:30.7]} 15...
Nc6 {[%clk 0:02:45.5]} 16. c3 {[%clk 0:02:30.1]} 16... Rfe8 {[%clk 0:02:42.7]}
17. Be3 {[%clk 0:02:23.8]} 17... Nd7 {[%clk 0:02:31.8]} 18. Nd2 {[%clk
0:02:22.6]} 18... cxb4 {[%clk 0:02:21]} 19. axb4 {[%clk 0:02:21.6]} 19... d5
{[%clk 0:02:21]} 20. exd5 {[%clk 0:02:03.3]} 20... Qxd5 {[%clk 0:02:20.8]} 21.
Qf3 {[%clk 0:02:04]} 21... Qxf3 {[%clk 0:02:18.9]} 22. gxf3 {[%clk 0:01:59.6]}
22... f6 {[%clk 0:02:14.2]} 23. Ne4 {[%clk 0:01:57.9]} 23... a5 {[%clk
0:02:07.9]} 24. Nd6 {[%clk 0:01:53]} 24... Reb8 {[%clk 0:02:07.3]} 25. bxa5
{[%clk 0:01:53.1]} 25... Rxa5 {[%clk 0:02:06.5]} 26. Rxa5 {[%clk 0:01:52.8]}
26... Nxa5 {[%clk 0:02:07.4]} 27. Rb1 {[%clk 0:01:53]} 27... Kf8 {[%clk
0:01:53.7]} 28. Kf1 {[%clk 0:01:50.9]} 28... Ke7 {[%clk 0:01:53.1]} 29. Nxb5
{[%clk 0:01:51.2]} 29... Nc6 {[%clk 0:01:48.9]} 30. Ke2 {[%clk 0:01:43.9]} 30...
Ra8 {[%clk 0:01:46.1]} 31. Rb2 {[%clk 0:01:43.8]} 31... Rb8 {[%clk 0:01:33.2]}
32. Bc1 {[%clk 0:01:40.9]} 32... Rb6 {[%clk 0:01:19.4]} 33. Na3 {[%clk
0:01:38.8]} 33... Rxb2+ {[%clk 0:01:18.4]} 34. Bxb2 {[%clk 0:01:39.7]} 34... Ke6
{[%clk 0:01:17]} 35. Nb5 {[%clk 0:01:35.2]} 35... Nb6 {[%clk 0:01:13.7]} 36. Ba3
{[%clk 0:01:33.5]} 36... Nd5 {[%clk 0:01:13.5]} 37. Bc1 {[%clk 0:01:25.5]} 37...
h5 {[%clk 0:01:13]} 38. c4 {[%clk 0:01:24.1]} 38... Nde7 {[%clk 0:01:07.7]} 39.
Kd2 {[%clk 0:01:20.8]} 39... Ng6 {[%clk 0:01:06.6]} 40. Kc3 {[%clk 0:01:19.8]}
40... Nh4 {[%clk 0:01:06.8]} 41. f4 {[%clk 0:01:19.9]} 41... exf4 {[%clk
0:01:04]} 42. Bxf4 {[%clk 0:01:20.8]} 42... g5 {[%clk 0:01:04]} 43. Bg3 {[%clk
0:01:16.2]} 43... Nf3 {[%clk 0:00:58.8]} 44. d4 {[%clk 0:01:16.1]} 44... Ne7
{[%clk 0:00:56]} 45. Kd3 {[%clk 0:01:07.2]} 45... h4 {[%clk 0:00:55.9]} 46. Bc7
{[%clk 0:01:00.1]} 46... f5 {[%clk 0:00:56.2]} 47. Bd8 {[%clk 0:00:56.5]} 47...
g4 {[%clk 0:00:54.1]} 48. hxg4 {[%clk 0:00:51.2]} 48... fxg4 {[%clk 0:00:50.3]}
49. d5+ {[%clk 0:00:45.3]} 49... Kd7 {[%clk 0:00:40.3]} 50. Bc7 {[%clk
0:00:35.6]} 50... h3 {[%clk 0:00:38.9]} 51. Ke4 {[%clk 0:00:33.7]} 51... h2
{[%clk 0:00:37]} 52. Bxh2 {[%clk 0:00:33.6]} 52... Nxh2 {[%clk 0:00:37.7]} 53.
c5 {[%clk 0:00:34.4]} 53... Nf3 {[%clk 0:00:34.3]} 54. Nc3 {[%clk 0:00:29.8]}
54... Ng5+ {[%clk 0:00:30.6]} 55. Ke5 {[%clk 0:00:27.5]} 55... Nf3+ {[%clk
0:00:22.5]} 56. Kf4 {[%clk 0:00:26.7]} 56... Nd2 {[%clk 0:00:18.6]} 57. Kxg4
{[%clk 0:00:22.1]} 57... Nxd5 {[%clk 0:00:18.9]} 58. Nxd5 {[%clk 0:00:20]} 58...
Kc6 {[%clk 0:00:19.6]} 59. Nc3 {[%clk 0:00:10.2]} 59... Kxc5 {[%clk 0:00:19.4]}
60. Kf5 {[%clk 0:00:10.9]} 60... Nf3 {[%clk 0:00:17.3]} 61. Kf4 {[%clk
0:00:09.1]} 61... Nd4 {[%clk 0:00:11.1]} 62. Ke4 {[%clk 0:00:06.6]} 62... Ne6
{[%clk 0:00:11.5]} 63. Ke5 {[%clk 0:00:06.7]} 63... Nf8 {[%clk 0:00:08.8]} 64.
Ne4+ {[%clk 0:00:02.8]} 64... Kc4 {[%clk 0:00:09.3]} 65. Ng5 {[%clk 0:00:01.4]}
65... Kd3 {[%clk 0:00:09.2]} 1/2-1/2

[Event "Early-Titled-Tuesday-Blitz-April-23-2024"]
[Site "Chess.com"]
[Date "2024.04.23"]
[Round "7"]
[White "tetrix83"]
[Black "Witik"]
[Result "0-1"]
[WhiteElo "2640"]
[BlackElo "2771"]
[TimeControl "180+1"]
[EndTime "9:21:05 PDT"]
[Termination "Witik won on time"]

1. e4 {[%clk 0:03:00.9]} 1... c6 {[%clk 0:03:00.1]} 2. d4 {[%clk 0:03:00.6]}
2... d5 {[%clk 0:03:00.8]} 3. exd5 {[%clk 0:03:01.3]} 3... cxd5 {[%clk
0:03:01.2]} 4. Bd3 {[%clk 0:03:01.4]} 4... Nf6 {[%clk 0:03:01]} 5. h3 {[%clk
0:03:00.7]} 5... Nc6 {[%clk 0:02:59.7]} 6. c3 {[%clk 0:03:01]} 6... e5 {[%clk
0:03:00]} 7. dxe5 {[%clk 0:03:00.8]} 7... Nxe5 {[%clk 0:03:00.9]} 8. Nf3 {[%clk
0:03:01.3]} 8... Nxd3+ {[%clk 0:02:56.8]} 9. Qxd3 {[%clk 0:03:02.2]} 9... Bd6
{[%clk 0:02:57.4]} 10. O-O {[%clk 0:03:00]} 10... O-O {[%clk 0:02:57.6]} 11. Bg5
{[%clk 0:03:00.5]} 11... h6 {[%clk 0:02:57.8]} 12. Bh4 {[%clk 0:02:59.6]} 12...
Re8 {[%clk 0:02:45.8]} 13. Nbd2 {[%clk 0:02:55.6]} 13... Be6 {[%clk 0:02:33.5]}
14. Nd4 {[%clk 0:02:47.9]} 14... a6 {[%clk 0:02:25.9]} 15. Rae1 {[%clk 0:02:42]}
15... Rc8 {[%clk 0:02:25.7]} 16. Bg3 {[%clk 0:02:38.8]} 16... Bf8 {[%clk
0:02:21.2]} 17. Be5 {[%clk 0:02:30.9]} 17... Bd7 {[%clk 0:02:15.6]} 18. Re2
{[%clk 0:01:40.3]} 18... Qb6 {[%clk 0:02:15.5]} 19. Bxf6 {[%clk 0:01:38.1]}
19... Qxf6 {[%clk 0:02:14.1]} 20. Rfe1 {[%clk 0:01:38.2]} 20... Qb6 {[%clk
0:01:59.6]} 21. N2f3 {[%clk 0:01:37.7]} 21... Rxe2 {[%clk 0:01:57.1]} 22. Rxe2
{[%clk 0:01:37.1]} 22... Qa5 {[%clk 0:01:51.4]} 23. Ne5 {[%clk 0:01:33.4]} 23...
Be8 {[%clk 0:01:49]} 24. a3 {[%clk 0:01:31]} 24... Qb6 {[%clk 0:01:49.1]} 25.
Qf3 {[%clk 0:01:26.9]} 25... Rd8 {[%clk 0:01:33.4]} 26. h4 {[%clk 0:01:15.7]}
26... g6 {[%clk 0:01:21.8]} 27. h5 {[%clk 0:01:15.4]} 27... Bg7 {[%clk
0:01:22.1]} 28. Qg4 {[%clk 0:01:09.9]} 28... gxh5 {[%clk 0:00:46.1]} 29. Qg3
{[%clk 0:00:56]} 29... Qf6 {[%clk 0:00:39.8]} 30. Nef3 {[%clk 0:00:45.6]} 30...
Bb5 {[%clk 0:00:35.9]} 31. Re3 {[%clk 0:00:44.6]} 31... Re8 {[%clk 0:00:26.4]}
32. Rxe8+ {[%clk 0:00:40.5]} 32... Bxe8 {[%clk 0:00:26.6]} 33. Qb8 {[%clk
0:00:40.4]} 33... Kf8 {[%clk 0:00:22.4]} 34. Qxb7 {[%clk 0:00:38.3]} 34... Qg6
{[%clk 0:00:10.4]} 35. Qb4+ {[%clk 0:00:36.8]} 35... Kg8 {[%clk 0:00:09.9]} 36.
Qe7 {[%clk 0:00:35.9]} 36... Ba4 {[%clk 0:00:10.2]} 37. Qd8+ {[%clk 0:00:29.6]}
37... Kh7 {[%clk 0:00:08.7]} 38. Qxd5 {[%clk 0:00:29.8]} 38... Qb1+ {[%clk
0:00:07.2]} 39. Kh2 {[%clk 0:00:29.9]} 39... Qxb2 {[%clk 0:00:07.7]} 40. Qe4+
{[%clk 0:00:27.1]} 40... Kg8 {[%clk 0:00:07]} 41. Qa8+ {[%clk 0:00:23.8]} 41...
Kh7 {[%clk 0:00:05.9]} 42. Qxa6 {[%clk 0:00:23.6]} 42... Qxa3 {[%clk 0:00:06.4]}
43. Qd3+ {[%clk 0:00:22.6]} 43... Kg8 {[%clk 0:00:06.2]} 44. Qe3 {[%clk
0:00:12.7]} 44... Qd6+ {[%clk 0:00:06.1]} 45. Kg1 {[%clk 0:00:10.2]} 45... Bd7
{[%clk 0:00:06.7]} 46. Qe4 {[%clk 0:00:09.5]} 46... Bg4 {[%clk 0:00:06.2]} 47.
c4 {[%clk 0:00:07.3]} 47... Qb4 {[%clk 0:00:05.5]} 48. Qa8+ {[%clk 0:00:04]}
48... Bf8 {[%clk 0:00:05.5]} 49. Qe4 {[%clk 0:00:04]} 49... Qxc4 {[%clk
0:00:05.6]} 50. Kh2 {[%clk 0:00:02.8]} 50... Bg7 {[%clk 0:00:05.1]} 51. Qf4
{[%clk 0:00:02.5]} 51... Qd5 {[%clk 0:00:04.8]} 52. Qb8+ {[%clk 0:00:02.3]}
52... Kh7 {[%clk 0:00:05]} 53. Qf4 {[%clk 0:00:02.6]} 53... Kg8 {[%clk
0:00:04.5]} 54. Qe3 {[%clk 0:00:02.9]} 54... Bd7 {[%clk 0:00:03.6]} 55. Kg1
{[%clk 0:00:02.8]} 55... h4 {[%clk 0:00:03.3]} 56. Qd3 {[%clk 0:00:02.7]} 56...
h3 {[%clk 0:00:03.5]} 57. g3 {[%clk 0:00:02.3]} 57... Bc6 {[%clk 0:00:03.9]} 58.
Kh2 {[%clk 0:00:01.6]} 58... Bxd4 {[%clk 0:00:04.3]} 59. Qxd4 {[%clk 0:00:01.6]}
59... Qxf3 {[%clk 0:00:04.6]} 60. Qd8+ {[%clk 0:00:01.7]} 60... Kh7 {[%clk
0:00:05.2]} 61. Kxh3 {[%clk 0:00:02]} 61... Qh5+ {[%clk 0:00:05.6]} 0-1